fUSD/lending_fUSD_20260329
["ID","MTS","AMOUNT","RATE_DAILY","PERIOD"]
[419051523,1774812647629,-181.48576588,0.000149,2]
[419051524,1774812647638,-181.48576588,0.000149,2]
[419051525,1774812647647,-853.34751353,0.00014903,2]
[419051526,1774812647656,-500.0,0.00014932,2]
[419051527,1774812647665,-200.0,0.00014942,2]
[419051528,1774812647674,-1500.0,0.00014968,2]
[419051529,1774812647684,-1500.0,0.00014968,2]
[419051530,1774812647693,-1402.73289396,0.00014968,2]
[419051531,1774812647702,-1500.0,0.00014968,2]
[419051532,1774812647711,-1500.0,0.00014968,2]
[419051533,1774812647720,-1507.9229115,0.00014968,2]
[419051534,1774812647730,-500.0,0.00014968,2]
[419051535,1774812647739,-1500.0,0.00014968,2]
[419051536,1774812647748,-1000.0,0.00014968,2]
[419051537,1774812647758,-784.86,0.0001497,2]
[419051538,1774812647767,-161.4,0.00015,2]
[419051539,1774812647776,-23182.79,0.00015,2]
[419051540,1774812647785,-1335.78,0.00015,2]
[419051541,1774812647794,-3630.9,0.00015024,2]
[419051542,1774812647804,-3377.65,0.00015068,2]
[419051543,1774812647814,-2000.0,0.000151,2]
[419051544,1774812647823,-2925.15918205,0.000152,2]
[419051545,1774812647832,-2693.0,0.000152,2]
[419051546,1774812647841,-28415.21983665,0.00015234,2]
[419051547,1774812647850,-27861.86786911,0.00015241,2]
[419051548,1774812647859,-888.83,0.00015244,2]
[419051549,1774812647869,-2000.0,0.00015342,2]
[419051550,1774812647878,-2083.85118063,0.00015342,2]
[419051551,1774812647887,-510.44418561,0.00015342,2]
[419051552,1774812647896,-332.25501618,0.00015342,2]
[419051553,1774812647905,-471.18842002,0.00015342,2]
[419051554,1774812647915,-395.15417605,0.00015342,2]
[419051555,1774812647924,-2000.0,0.00015342,2]
[419051556,1774812647933,-1000.0,0.00015384,2]
[419051557,1774812647942,-485.48,0.00015393,2]
[419051558,1774812647951,-1570.0,0.000154,2]
[419051559,1774812647960,-5888.0,0.00015419,2]
[419051560,1774812647969,-3630.9,0.0001543,2]
[419051561,1774812647979,-1107482.8837354,0.00015447,2]
[419051562,1774812647988,-151.0,0.00015488,2]
[419051563,1774812647997,-3814.7422547,0.00015489,2]
[419051564,1774812648005,-200.0,0.0001549,2]
[419051565,1774812648014,-2000.0,0.000155,2]
[419051566,1774812648024,-2000.0,0.000155,2]
[419051567,1774812648033,-3456.0,0.000155,2]
[419051568,1774812648043,-11700.0,0.000155,5]
[419051569,1774812648052,-2000.0,0.000155,2]
[419051570,1774812648062,-2000.0,0.000155,2]
[419051571,1774812648072,-2000.0,0.000155,2]
[419051572,1774812648081,-4000.0,0.00015507,2]
[419051573,1774812648091,-1000.0,0.0001551,2]
[419051574,1774812648100,-1000.0,0.00015515,2]
[419051575,1774812648110,-578.20924308,0.00015516,2]
[419051576,1774812648119,-500.0,0.00015516,2]
[419051577,1774812648128,-209.40437684,0.00015516,2]
[419051578,1774812648137,-500.0,0.00015516,2]
[419051579,1774812648147,-717.60346743,0.00015516,2]
[419051580,1774812648156,-151.0,0.00015516,2]
[419051581,1774812648165,-500.0,0.00015516,2]
[419051582,1774812648175,-1428.38747117,0.00015516,2]
[419051583,1774812648184,-9552.16786547,0.00015516,2]
[419051584,1774812648194,-500.0,0.00015516,2]
[419051585,1774812648203,-500.0,0.00015516,2]
[419051586,1774812648212,-151.0,0.00015516,2]
[419051587,1774812648221,-500.0,0.00015516,2]
[419051588,1774812648231,-151.0,0.00015516,2]
[419051589,1774812648241,-500.0,0.00015516,2]
[419051590,1774812648250,-500.0,0.00015516,2]
[419051591,1774812648259,-151.0,0.00015516,2]
[419051592,1774812648268,-500.0,0.00015516,2]
[419051593,1774812648278,-151.0,0.00015516,2]
[419051594,1774812648287,-500.0,0.00015516,2]
[419051595,1774812648296,-292.30151101,0.00015516,2]
[419051596,1774812648305,-500.0,0.00015516,2]
[419051597,1774812648315,-500.0,0.00015516,2]
[419051598,1774812648323,-500.0,0.00015516,2]
[419051599,1774812648332,-500.0,0.00015516,2]
[419051600,1774812648341,-500.0,0.00015516,2]
[419051601,1774812648350,-209.40437684,0.00015516,2]
[419051602,1774812648360,-500.0,0.00015516,2]
[419051603,1774812648369,-500.0,0.00015516,2]
[419051604,1774812648378,-500.0,0.00015516,2]
[419051605,1774812648388,-500.0,0.00015516,2]
[419051606,1774812648397,-500.0,0.00015516,2]
[419051607,1774812648407,-500.0,0.00015516,2]
[419051608,1774812648416,-500.0,0.00015516,2]
[419051609,1774812648425,-500.0,0.00015516,2]
[419051610,1774812648435,-500.0,0.00015516,2]
[419051611,1774812648444,-500.0,0.00015516,2]
[419051612,1774812648453,-500.0,0.00015516,2]
[419051613,1774812648463,-500.0,0.00015516,2]
[419051614,1774812648472,-500.0,0.00015516,2]
[419051615,1774812648481,-174.61919141,0.00015516,2]
[419051616,1774812648491,-500.0,0.00015516,2]
[419051617,1774812648500,-500.0,0.00015516,2]
[419051618,1774812648510,-500.0,0.00015516,2]
[419051619,1774812648518,-500.0,0.00015516,2]
[419051620,1774812648528,-500.0,0.00015516,2]
[419051621,1774812648537,-500.0,0.00015516,2]
[419051622,1774812648546,-250.0,0.00015516,2]
[419051623,1774812648555,-151.0,0.00015516,2]
[419051624,1774812648567,-250.0,0.00015516,2]
[419051625,1774812648576,-250.0,0.00015516,2]
[419051626,1774812648586,-693.3919763,0.00015516,2]
[419051627,1774812648595,-250.0,0.00015516,2]
[419051628,1774812648604,-200.0,0.00015516,2]
[419051629,1774812648613,-250.0,0.00015516,2]
[419051630,1774812648623,-250.0,0.00015516,2]
[419051631,1774812648632,-250.0,0.00015516,2]
[419051632,1774812648642,-250.0,0.00015516,2]
[419051633,1774812648651,-250.0,0.00015516,2]
[419051634,1774812648660,-250.0,0.00015516,2]
[419051635,1774812648670,-250.0,0.00015516,2]
[419051636,1774812648680,-209.40437684,0.00015516,2]
[419051637,1774812648689,-743.50770149,0.00015516,2]
[419051638,1774812648698,-262.90206542,0.00015516,2]
[419051639,1774812648707,-279.9045709,0.00015516,2]
[419051640,1774812648717,-209.40437684,0.00015516,2]
[419051641,1774812648727,-151.0,0.00015516,2]
[419051642,1774812648736,-194.63986655,0.00015516,2]
[419051643,1774812648746,-500.0,0.00015516,2]
[419051644,1774812648756,-500.0,0.00015516,2]
[419051645,1774812648766,-500.0,0.00015516,2]
[419051646,1774812648775,-500.0,0.00015516,2]
[419051647,1774812648784,-500.0,0.00015516,2]
[419051648,1774812648794,-2000.0,0.00015516,2]
[419051649,1774812648803,-2000.0,0.00015516,2]
[419051650,1774812648812,-2000.0,0.00015516,2]
[419051651,1774812648822,-2000.0,0.00015516,2]
[419051652,1774812648831,-2000.0,0.00015516,2]
[419051653,1774812648842,-151.0,0.00015563,2]
[419051654,1774812648851,-1500000.0,0.00015566,2]
[419051655,1774812648860,-500.0,0.00015571,2]
[419051656,1774812648870,-9905.5980765,0.00015571,2]
[419051657,1774812648879,-151.0,0.00015571,2]
[419051658,1774812648888,-272.62944185,0.00015571,2]
[419051659,1774812648897,-445.2602,0.000156,2]
[419051660,1774812648907,-2300.0,0.000156,5]
[419051661,1774812648916,-2000.0,0.000156,2]
[419051662,1774812648926,-2000.0,0.00015621,2]
[419051663,1774812648936,-2000.0,0.00015621,2]
[419051664,1774812648945,-2000.0,0.00015621,2]
[419051665,1774812648955,-2000.0,0.00015621,2]
[419051666,1774812648964,-2000.0,0.00015621,2]
[419051667,1774812648973,-2000.0,0.00015621,2]
[419051668,1774812648983,-2000.0,0.00015621,2]
[419051669,1774812648993,-2000.0,0.00015621,2]
[419051670,1774812649004,-2000.0,0.00015621,2]
[419051671,1774812649013,-2000.0,0.00015621,2]
[419051672,1774812649024,-189.38,0.00015624,2]
[419051673,1774812649033,-500.0,0.00015626,2]
[419051674,1774812649042,-10272.10520533,0.00015626,2]
[419051675,1774812649052,-151.0,0.00015626,2]
[419051676,1774812649062,-282.71673119,0.00015626,2]
[419051677,1774812649071,-1096.24809732,0.00015633,2]
[419051678,1774812649082,-500.0,0.00015681,2]
[419051679,1774812649091,-10652.17309792,0.00015681,2]
[419051680,1774812649101,-151.0,0.00015681,2]
[419051681,1774812649111,-293.17725025,0.00015681,2]
[419051682,1774812649121,-1292.9,0.00015699,30]
[419051683,1774812649130,-2300.0,0.000157,5]
[419051684,1774812649141,-2000.0,0.00015716,2]
[419051685,1774812649152,-2000.0,0.00015716,2]
[419051686,1774812649160,-2000.0,0.00015716,2]
[419051687,1774812649170,-2000.0,0.00015716,2]
[419051688,1774812649179,-2000.0,0.00015716,2]
[419051689,1774812649189,-2000.0,0.00015716,2]
[419051690,1774812649198,-2000.0,0.00015716,2]
[419051691,1774812649207,-2000.0,0.00015716,2]
[419051692,1774812649216,-2000.0,0.00015716,2]
[419051693,1774812649226,-2000.0,0.00015716,2]
[419051694,1774812649236,-1000.0,0.00015723,2]
[419051695,1774812649246,-500.0,0.00015736,2]
[419051696,1774812649255,-11046.30350255,0.00015736,2]
[419051697,1774812649265,-151.0,0.00015736,2]
[419051698,1774812649274,-304.02480851,0.00015736,2]
[419051699,1774812649284,-189.38,0.00015741,2]
[419051700,1774812649294,-3377.65,0.00015753,2]
[419051701,1774812649303,-458.0,0.00015781,2]
[419051702,1774812649312,-690.0,0.00015781,2]
[419051703,1774812649322,-1000.0,0.00015781,2]
[419051704,1774812649331,-500.0,0.00015791,2]
[419051705,1774812649341,-11455.01673214,0.00015791,2]
[419051706,1774812649351,-151.0,0.00015791,2]
[419051707,1774812649361,-315.27372642,0.00015791,2]
[419051708,1774812649370,-2300.0,0.000158,5]
[419051709,1774812649379,-67726.49863211,0.0001584,2]
[419051710,1774812649389,-11878.85235123,0.00015846,2]
[419051711,1774812649398,-500.0,0.00015846,2]
[419051712,1774812649407,-151.0,0.00015846,2]
[419051713,1774812649417,-326.9388543,0.00015846,2]
[419051714,1774812649426,-2000.0,0.00015859,2]
[419051715,1774812649436,-2000.0,0.00015859,2]
[419051716,1774812649447,-2000.0,0.00015859,2]
[419051717,1774812649457,-2000.0,0.00015859,2]
[419051718,1774812649466,-2000.0,0.00015859,2]
[419051719,1774812649475,-2000.0,0.00015859,2]
[419051720,1774812649485,-2000.0,0.00015859,2]
[419051721,1774812649494,-2000.0,0.00015859,2]
[419051722,1774812649503,-2000.0,0.00015859,2]
[419051723,1774812649513,-2000.0,0.00015859,2]
[419051724,1774812649523,-1000.0,0.00015863,2]
[419051725,1774812649531,-200.0,0.00015872,2]
[419051726,1774812649540,-2000.0,0.0001589,2]
[419051727,1774812649550,-781.0056123,0.0001589,2]
[419051728,1774812649559,-4000.0,0.00015895,2]
[419051729,1774812649568,-393.00963669,0.00015897,2]
[419051730,1774812649577,-150.0,0.000159,2]
[419051731,1774812649586,-150.0,0.000159,2]
[419051732,1774812649596,-10000.0,0.000159,2]
[419051733,1774812649606,-150.0,0.000159,2]
[419051734,1774812649615,-150.0,0.000159,2]
[419051735,1774812649624,-150.0,0.000159,2]
[419051736,1774812649633,-853.34751353,0.000159,2]
[419051737,1774812649643,-27861.86786911,0.000159,2]
[419051738,1774812649653,-2300.0,0.000159,5]
[419051739,1774812649663,-150.0,0.000159,2]
[419051740,1774812649673,-28415.21983665,0.000159,2]
[419051741,1774812649682,-150.0,0.000159,2]
[419051742,1774812649691,-500.0,0.00015901,2]
[419051743,1774812649700,-12318.36988823,0.00015901,2]
[419051744,1774812649710,-151.0,0.00015901,2]
[419051745,1774812649718,-339.03559191,0.00015901,2]
[419051746,1774812649727,-1000.0,0.00015907,2]
[419051747,1774812649737,-6453.0,0.00015931,2]
[419051748,1774812649747,-401.78,0.0001595,2]
[419051749,1774812649756,-500.0,0.00015956,2]
[419051750,1774812649766,-12774.14957409,0.00015956,2]
[419051751,1774812649776,-151.0,0.00015956,2]
[419051752,1774812649786,-217.22648204,0.00015956,2]
[419051753,1774812649795,-3835.20744626,0.0001596,2]
[419051754,1774812649805,-2129.0,0.00015964,2]
[419051755,1774812649814,-1000.0,0.00015969,2]
[419051756,1774812649823,-1270.708,0.0001598,2]
[419051757,1774812649832,-151.208,0.0001598,2]
[419051758,1774812649841,-930.845,0.0001598,2]
[419051759,1774812649850,-1219.67,0.0001598,2]
[419051760,1774812649860,-1050.151,0.0001598,2]
[419051761,1774812649870,-3518.0,0.0001598,2]
[419051762,1774812649879,-195.718732,0.00015997,2]
[419051763,1774812649887,-151.0,0.00015997,2]
[419051764,1774812649896,-666.0,0.00015999,2]
[419051765,1774812649905,-666.0,0.00015999,2]
[419051766,1774812649916,-401.78,0.00015999,2]
[419051767,1774812649926,-2796526.23864912,0.00016,2]
[419051768,1774812651453,-150.0,0.0001,2]
[419051769,1774812651464,-170.637792,0.00011064,2]
[419051770,1774812651475,-196.9174,0.000113,2]
[419051771,1774812651486,-258.5099,0.000127,2]
[419051772,1774812651496,-339.3674,0.000141,2]
[419051773,1774812651507,-103.73868507,0.00015956,2]
[419051774,1774812651519,-896.26131493,0.00015956,2]
[419051775,1774812651528,-1000.0,0.00015956,2]
[419051776,1774812651537,-2709999.91429872,0.00016,2]
[419051777,1774812651578,-616.0,0.00015467,2]
[419051778,1774812652235,-987.61314542,0.000115,2]
[419051779,1774812652247,-25552.38685458,0.000115,2]
[419051780,1774812652256,-5534.0,0.000117,3]
[419051781,1774812652265,-730.0,0.00015467,2]
[419051782,1774812652276,-1000.0,0.00015956,2]
[419051783,1774812652286,-1000.0,0.00015956,2]
[419051784,1774812652298,-1000.0,0.00015956,2]
[419051785,1774812652307,-469.082,0.00015956,2]
[419051786,1774812652316,-372045.42542989,0.00016,2]
[419051787,1774812652327,-474473.42629621,0.00016,2]
[419051788,1774812652513,-570.73643002,0.0001,2]
[419051789,1774812652523,-151.0,0.00012895,2]
[419051790,1774812652532,-1000.0,0.00015909,2]
[419051791,1774812652541,-1000.0,0.00015909,2]
[419051792,1774812652550,-1000.0,0.00015909,2]
[419051793,1774812652560,-789.19627543,0.00015909,2]
[419051794,1774812652571,-210.80372457,0.00015909,2]
[419051795,1774812652580,-319.21640321,0.00015909,2]
[419051798,1774812776210,-300.0,9.619e-05,2]
[419051799,1774812776234,-4300.0,9.62e-05,2]
[419051800,1774812926781,331.71019032,9.7e-05,30]
[419051801,1774813044856,-200.0,9.6e-05,3]
[419051802,1774813044889,-500.0,9.6e-05,3]
[419051803,1774813044921,-400.0,9.6e-05,3]
[419051804,1774813044952,-155.0,9.62e-05,3]
[419051805,1774813044985,-2479.419,9.62e-05,2]
[419051806,1774813045015,-434.806,9.62e-05,2]
[419051807,1774813045046,-300.0,9.699e-05,2]
[419051808,1774813045076,-300.0,9.699e-05,2]
[419051809,1774813045341,-306.56,9.7e-05,3]
[419051810,1774813050030,1520.0,9.372e-05,2]
[419051811,1774813051091,-600.0,9.592e-05,2]
[419051812,1774813051125,-193.44,9.7e-05,3]
[419051813,1774813051159,-1100.0,9.7e-05,3]
[419051814,1774813051191,-900.0,9.7e-05,3]
[419051815,1774813051221,-250.0,9.715e-05,2]
[419051816,1774813051330,-3913.13,9.716e-05,2]
[419051817,1774813075009,200.0,9.128e-05,2]
[419051818,1774813116212,800.0,8.785e-05,2]
[419051819,1774813178448,-1500.0,9.629e-05,2]
[419051820,1774813178478,-300.0,9.715e-05,2]
[419051821,1774813178507,-300.0,9.715e-05,2]
[419051822,1774813178535,-96.7634,9.716e-05,2]
[419051823,1774813179075,-2235.2483,9.716e-05,2]
[419051824,1774813179290,-135.9866,9.716e-05,2]
[419051825,1774813181363,-1000.0,9.716e-05,2]
[419051826,1774813181395,-2500.0,9.716e-05,2]
[419051827,1774813181425,-900.0,9.743e-05,2]
[419051828,1774813181454,-150.0,9.792e-05,2]
[419051829,1774813181483,-400.01,9.793e-05,2]
[419051830,1774813181579,-99.99,9.793e-05,2]
[419051831,1774813184443,-500.0,9.793e-05,2]
[419051832,1774813184473,-500.0,9.793e-05,2]
[419051833,1774813184502,-500.0,9.793e-05,2]
[419051834,1774813184531,-500.0,9.793e-05,2]
[419051835,1774813184562,-700.0,9.8e-05,3]
[419051836,1774813184595,-1700.0,9.8e-05,3]
[419051837,1774813184709,-1200.01,9.8e-05,3]
[419051840,1774813259662,5000.01,9.036e-05,2]
[419051841,1774813259684,5000.01,9.036e-05,2]
[419051842,1774813259706,5000.01,9.036e-05,2]
[419051843,1774813259728,5000.01,9.036e-05,2]
[419051844,1774813259749,4351.51,9.036e-05,2]
[419051845,1774813379443,166.66,9.236e-05,2]
[419051847,1774813386600,1300.9,8.942e-05,2]
[419051848,1774813523978,-725.69,9.523e-05,2]
[419051849,1774813524010,-166.66,9.541e-05,2]
[419051850,1774813524049,-155.0,9.62e-05,3]
[419051851,1774813524082,-2500.0,9.716e-05,2]
[419051852,1774813524679,-1200.0,9.792e-05,2]
[419051853,1774813524710,-205.31,9.792e-05,2]
[419051854,1774813528274,-94.69,9.792e-05,2]
[419051855,1774813634413,-1500.0,9.6e-05,3]
[419051856,1774813634444,-3000.0,9.7e-05,3]
[419051857,1774813634650,-939.7,9.716e-05,2]
[419051858,1774813639315,-1560.3,9.716e-05,2]
[419051859,1774813639356,-6879.41,9.716e-05,2]
[419051860,1774813669145,1000.0,9.47e-05,2]
[419051861,1774813731820,180.69,9.195e-05,2]
[419051862,1774813750211,1500.0,9.063e-05,2]
[419051865,1774813833321,-823.641,9.699e-05,2]
[419051866,1774813833334,-7600.0,9.699e-05,2]
[419051867,1774813833376,-705.08286746,9.699e-05,2]
[419051868,1774813833482,-305.27613254,9.699e-05,2]
[419051869,1774813833492,-238.74386746,9.7e-05,2]
[419051870,1774813833504,-17.25613254,9.7e-05,2]
[419051871,1774813833514,-150.0,9.7e-05,2]
[419051872,1774813833524,-228.20571621,9.7e-05,2]
[419051873,1774813833533,-1000.0,9.713e-05,2]
[419051874,1774813833542,-1200.0,9.713e-05,2]
[419051875,1774813833552,-150.0,9.713e-05,2]
[419051876,1774813833562,-194.65430371,9.713e-05,2]
[419051877,1774813833571,-60164.7952504,9.714e-05,2]
[419051878,1774813833583,-491.0360497,9.714e-05,2]
[419051879,1774813833593,-342.48315084,9.714e-05,2]
[419051880,1774813833605,-582.02709319,9.714e-05,2]
[419051881,1774813833616,-5480.89925346,9.714e-05,2]
[419051882,1774813833627,-1712.27356767,9.714e-05,2]
[419051886,1774813838385,-336.09072231,9.714e-05,2]
[419051887,1774813838702,-4730.75089867,9.714e-05,2]
[419051888,1774813838714,-500.0,9.714e-05,2]
[419051889,1774813838725,-2425659.64401376,9.714e-05,2]
[419051890,1774813838735,-2500.0,9.714e-05,2]
[419051891,1774813838744,-150.0,9.715e-05,2]
[419051892,1774813838754,-300.0,9.715e-05,2]
[419051893,1774813838763,-1493120.59,9.716e-05,2]
[419051894,1774813838772,-171.50157608,9.793e-05,2]
[419051895,1774813838781,-500.0,9.793e-05,2]
[419051896,1774813838791,-500.0,9.793e-05,2]
[419051897,1774813838800,-163.63015478,9.793e-05,2]
[419051898,1774813838810,-500.0,9.793e-05,2]
[419051899,1774813838819,-500.0,9.793e-05,2]
[419051900,1774813838828,-500.0,9.793e-05,2]
[419051901,1774813838838,-500.0,9.793e-05,2]
[419051902,1774813838847,-500.0,9.793e-05,2]
[419051903,1774813838857,-500.0,9.793e-05,2]
[419051905,1774813838866,-500.0,9.793e-05,2]
[419051907,1774813838877,-500.0,9.793e-05,2]
[419051909,1774813838886,-224.32485354,9.793e-05,2]
[419051911,1774813838896,-3795.23329007,9.793e-05,2]
[419051913,1774813838905,-4600.0,9.8e-05,3]
[419051915,1774813838914,-1000.0,9.81e-05,2]
[419051917,1774813838924,-1600.0,9.812e-05,2]
[419051919,1774813838934,-9999.99,9.814e-05,2]
[419051921,1774813838943,-9999.99,9.814e-05,2]
[419051923,1774813838953,-9999.99,9.814e-05,2]
[419051925,1774813838962,-150.99,9.814e-05,2]
[419051927,1774813838971,-4999.99,9.814e-05,2]
[419051929,1774813838981,-94739.83,9.814e-05,2]
[419051931,1774813838990,-9999.99,9.814e-05,2]
[419051933,1774813839000,-150.99,9.814e-05,2]
[419051935,1774813839009,-8618.44,9.814e-05,2]
[419051937,1774813839018,-7603.56,9.814e-05,2]
[419051939,1774813839028,-2115.96,9.814e-05,2]
[419051941,1774813839038,-2267.62,9.814e-05,2]
[419051943,1774813839046,-9999.99,9.814e-05,2]
[419051945,1774813839057,-23348.11,9.814e-05,2]
[419051947,1774813839066,-1901.65,9.814e-05,2]
[419051949,1774813839076,-299.99,9.814e-05,2]
[419051951,1774813839085,-5081.68,9.814e-05,2]
[419051953,1774813839094,-1619.68,9.814e-05,2]
[419051955,1774813839104,-499.99,9.814e-05,2]
[419051957,1774813839113,-1181.25,9.814e-05,2]
[419051959,1774813839122,-1842.25,9.814e-05,2]
[419051961,1774813839132,-517.77,9.814e-05,2]
[419051963,1774813839141,-77037.16,9.814e-05,2]
[419051965,1774813839150,-8455.71,9.814e-05,2]
[419051967,1774813839160,-999.99,9.814e-05,2]
[419051968,1774813839169,-9999.99,9.814e-05,2]
[419051969,1774813839178,-2997.56,9.814e-05,2]
[419051971,1774813839188,-4566.50840311,9.815e-05,2]
[419051973,1774813839197,-1066.30871202,9.815e-05,3]
[419051975,1774813839207,-1066.30871202,9.815e-05,3]
[419051977,1774813839216,-1066.30871202,9.815e-05,3]
[419051979,1774813839226,-1066.30871202,9.815e-05,3]
[419051981,1774813839235,-1066.30871202,9.815e-05,3]
[419051983,1774813839244,-1066.308712,9.815e-05,3]
[419051985,1774813839254,-973.92,9.815e-05,2]
[419051987,1774813839263,-5722.457,9.815e-05,2]
[419051989,1774813839272,-383.35,9.815e-05,2]
[419051991,1774813839281,-153.27466148,9.816e-05,2]
[419051992,1774813839290,-500.0,9.816e-05,2]
[419051994,1774813839300,-166.66,9.846e-05,2]
[419051996,1774813839309,-500.0,9.873e-05,2]
[419051998,1774813839319,-167.63692162,9.873e-05,2]
[419052000,1774813839328,-500.0,9.873e-05,2]
[419052002,1774813839336,-6100.0,9.9e-05,3]
[419052004,1774813839346,-440.0,9.948e-05,2]
[419052006,1774813839355,-262.0,9.968e-05,2]
[419052008,1774813839364,-431.0,9.982e-05,2]
[419052010,1774813839374,-586.04601217,0.0001,2]
[419052012,1774813839383,-1462.29288035,0.0001,2]
[419052014,1774813839392,-1253.88076962,0.0001,2]
[419052016,1774813839401,-163.39776477,0.0001,2]
[419052018,1774813839410,-189.8021995,0.0001,2]
[419052019,1774813839421,-7700.0,0.0001,3]
[419052021,1774813839431,-500.0,0.0001,2]
[419052023,1774813839441,-500.0,0.0001,2]
[419052025,1774813839451,-500.0,0.0001,2]
[419052027,1774813839461,-500.0,0.0001,2]
[419052030,1774813839471,-500.0,0.0001,2]
[419052031,1774813839481,-500.0,0.0001,2]
[419052033,1774813839490,-200.0,0.0001,2]
[419052035,1774813839500,-500.0,0.0001,2]
[419052037,1774813839509,-500.0,0.0001,2]
[419052039,1774813839519,-500.0,0.0001,2]
[419052041,1774813839530,-500.0,0.0001,2]
[419052043,1774813839539,-500.0,0.0001,2]
[419052045,1774813839548,-151.0,0.0001,2]
[419052047,1774813839558,-151.0,0.0001,2]
[419052049,1774813839567,-151.0,0.0001,2]
[419052051,1774813839577,-151.0,0.0001,2]
[419052053,1774813839586,-151.0,0.0001,2]
[419052055,1774813839595,-420.13383663,0.0001,2]
[419052057,1774813839604,-151.0,0.0001,2]
[419052059,1774813839614,-151.0,0.0001,2]
[419052061,1774813839622,-151.0,0.0001,2]
[419052063,1774813839633,-151.0,0.0001,2]
[419052064,1774813839642,-151.0,0.0001,2]
[419052066,1774813839651,-151.0,0.0001,2]
[419052068,1774813839661,-151.0,0.0001,2]
[419052070,1774813839670,-151.0,0.0001,2]
[419052072,1774813839679,-151.0,0.0001,2]
[419052074,1774813839688,-151.0,0.0001,2]
[419052076,1774813839698,-151.0,0.0001,2]
[419052078,1774813839707,-151.0,0.0001,2]
[419052080,1774813839717,-151.0,0.0001,2]
[419052082,1774813839727,-151.0,0.0001,2]
[419052084,1774813839736,-151.0,0.0001,2]
[419052086,1774813839746,-151.0,0.0001,2]
[419052088,1774813839755,-151.0,0.0001,2]
[419052090,1774813839765,-151.0,0.0001,2]
[419052092,1774813839775,-151.0,0.0001,2]
[419052094,1774813839784,-151.0,0.0001,2]
[419052096,1774813839794,-151.0,0.0001,2]
[419052098,1774813839803,-151.0,0.0001,2]
[419052100,1774813839812,-500.0,0.0001,2]
[419052102,1774813839821,-500.0,0.0001,2]
[419052103,1774813839831,-151.0,0.0001,2]
[419052105,1774813839840,-500.0,0.0001,2]
[419052107,1774813839849,-151.0,0.0001,2]
[419052109,1774813839859,-500.0,0.0001,2]
[419052111,1774813839868,-151.0,0.0001,2]
[419052113,1774813839878,-500.0,0.0001,2]
[419052115,1774813839888,-151.0,0.0001,2]
[419052117,1774813839897,-500.0,0.0001,2]
[419052119,1774813839907,-500.0,0.0001,2]
[419052121,1774813839917,-500.0,0.0001,2]
[419052123,1774813839926,-500.0,0.0001,2]
[419052125,1774813839935,-500.0,0.0001,2]
[419052127,1774813839945,-500.0,0.0001,2]
[419052129,1774813839954,-151.0,0.0001,2]
[419052132,1774813839965,-1386.78395259,0.0001,2]
[419052133,1774813839974,-181.95612017,0.0001,2]
[419052135,1774813839984,-181.95612017,0.0001,2]
[419052137,1774813839994,-185.0,0.00010002,2]
[419052139,1774813840004,-371.0,0.00010022,2]
[419052141,1774813840013,-259.09,0.00010027,2]
[419052144,1774813840023,-190.0,0.00010042,2]
[419052145,1774813840033,-956.07,0.0001006,2]
[419052147,1774813840043,-282.0,0.00010062,2]
[419052150,1774813840056,-485.0,0.00010082,2]
[419052152,1774813840065,-973.92,0.00010089,2]
[419052154,1774813840074,-500.0,0.0001009,2]
[419052155,1774813840084,-1018.0,0.00010093,2]